fUST/lending_fUST_20250424
["ID","MTS","AMOUNT","RATE_DAILY","PERIOD"]
[358857519,1745489236439,-500.0,0.000161,2]
[358857520,1745489236463,-250.0,0.00016617,2]
[358857521,1745489236484,-3908.64133497,0.00017176,2]
[358857522,1745489241320,-152.0,0.00015791,2]
[358857523,1745489241887,-152.0,0.00015791,2]
[358857524,1745489283154,-209.7753395,0.00015633,2]
[358857525,1745489313253,-266.14013191,0.00015633,2]
[358857526,1745489343724,-233.85986809,0.00015631,2]
[358857527,1745489374110,-66.14013191,0.00015631,2]
[358857528,1745489374132,-316.45056469,0.00015632,2]
[358857529,1745489374782,-141.04964504,0.00015632,2]
[358857530,1745489374804,-53.60976502,0.00015632,2]
[358857531,1745489382996,-196.23684146,0.00015532,2]
[358857532,1745489385462,-2233.75313965,0.00015532,2]
[358857533,1745489385487,-446.39023498,0.00015632,2]
[358857534,1745489385515,-500.0,0.00015632,2]
[358857535,1745489385542,-500.0,0.00015632,2]
[358857536,1745489385563,-500.0,0.00015632,2]
[358857537,1745489385590,-500.0,0.00015632,2]
[358857538,1745489385611,-500.0,0.00015632,2]
[358857539,1745489385638,-500.0,0.00015632,2]
[358857540,1745489385664,-500.0,0.00015632,2]
[358857541,1745489385686,-278.80687193,0.00015632,2]
[358857542,1745489385714,-151.04975344,0.00015632,2]
[358857543,1745489386773,-270.81228951,0.00015632,2]
[358857544,1745489403572,-152.02078535,0.00015631,2]
[358857547,1745489411855,-147.97921465,0.00015631,2]
[358857548,1745489411879,-19.7758815,0.00015631,2]
[358857569,1745489432619,-1180.2241185,0.00015631,2]
[358857571,1745489432629,-78.13795705,0.00015632,2]
[358857572,1745489432639,-500.0,0.00015632,2]
[358857574,1745489432648,-500.0,0.00015632,2]
[358857576,1745489432657,-500.0,0.00015632,2]
[358857578,1745489432667,-500.0,0.00015632,2]
[358857580,1745489432676,-500.0,0.00015632,2]
[358857582,1745489432685,-500.0,0.00015632,2]
[358857584,1745489432695,-500.0,0.00015632,2]
[358857586,1745489432705,-500.0,0.00015632,2]
[358857588,1745489432715,-500.0,0.00015632,2]
[358857589,1745489432724,-500.0,0.00015632,2]
[358857591,1745489432734,-500.0,0.00015632,2]
[358857593,1745489432743,-500.0,0.00015632,2]
[358857595,1745489432754,-500.0,0.00015632,2]
[358857597,1745489432763,-500.0,0.00015632,2]
[358857599,1745489432774,-500.0,0.00015632,2]
[358857601,1745489432784,-500.0,0.00015632,2]
[358857603,1745489432793,-500.0,0.00015632,2]
[358857605,1745489432802,-500.0,0.00015632,2]
[358857607,1745489432812,-500.0,0.00015632,2]
[358857609,1745489432822,-500.0,0.00015632,2]
[358857611,1745489432831,-500.0,0.00015632,2]
[358857612,1745489432841,-500.0,0.00015632,2]
[358857614,1745489432850,-500.0,0.00015632,2]
[358857616,1745489432860,-500.0,0.00015632,2]
[358857618,1745489432869,-500.0,0.00015632,2]
[358857620,1745489432879,-500.0,0.00015632,2]
[358857622,1745489432888,-500.0,0.00015632,2]
[358857624,1745489432898,-447.3959928,0.00015632,2]
[358857626,1745489432907,-500.0,0.00015632,2]
[358857628,1745489432917,-500.0,0.00015632,2]
[358857629,1745489432926,-500.0,0.00015632,2]
[358857630,1745489432937,-500.0,0.00015632,2]
[358857631,1745489432946,-500.0,0.00015632,2]
[358857632,1745489432956,-500.0,0.00015632,2]
[358857633,1745489432965,-500.0,0.00015632,2]
[358857634,1745489432975,-500.0,0.00015632,2]
[358857635,1745489432984,-549.91863764,0.00015632,2]
[358857636,1745489432993,-500.0,0.00015632,2]
[358857637,1745489433003,-500.0,0.00015632,2]
[358857638,1745489433012,-500.0,0.00015632,2]
[358857639,1745489433022,-500.0,0.00015632,2]
[358857640,1745489433031,-500.0,0.00015632,2]
[358857641,1745489433041,-270.0,0.00015632,2]
[358857642,1745489433051,-500.0,0.00015632,2]
[358857643,1745489433060,-500.0,0.00015632,2]
[358857644,1745489433070,-500.0,0.00015632,2]
[358857645,1745489433080,-500.0,0.00015632,2]
[358857646,1745489433090,-500.0,0.00015632,2]
[358857647,1745489433100,-500.0,0.00015632,2]
[358857648,1745489433109,-500.0,0.00015632,2]
[358857649,1745489433119,-500.0,0.00015632,2]
[358857650,1745489433129,-500.0,0.00015632,2]
[358857651,1745489433138,-344.6383483,0.00015632,2]
[358857652,1745489433148,-400.0,0.00015632,2]
[358857653,1745489433158,-500.0,0.00015632,2]
[358857654,1745489433169,-500.0,0.00015632,2]
[358857655,1745489433179,-500.0,0.00015632,2]
[358857656,1745489433188,-500.0,0.00015632,2]
[358857657,1745489433198,-500.0,0.00015632,2]
[358857658,1745489433207,-500.0,0.00015632,2]
[358857659,1745489433216,-500.0,0.00015632,2]
[358857660,1745489433226,-500.0,0.00015632,2]
[358857661,1745489433235,-233.85986809,0.00015632,2]
[358857662,1745489433245,-194.65941006,0.00015632,2]
[358857663,1745489433254,-270.81228951,0.00015632,2]
[358857664,1745489433264,-196.23684146,0.00015632,2]
[358857665,1745489433274,-152.02078535,0.00015632,2]
[358857666,1745489433283,-167.75509615,0.00015632,2]
[358857667,1745489433293,-34909.87356453,0.00015632,2]
[358857668,1745489433303,-500.0,0.000158,2]
[358857669,1745489433312,-500.0,0.000158,2]
[358857670,1745489433322,-504.56656241,0.000158,2]
[358857671,1745489433333,-502.91650615,0.00016438,2]
[358857672,1745489433344,-420.0,0.00017096,2]
[358857673,1745489433354,-790.30324013,0.00017176,2]
[358857674,1745489433363,-1680.0,0.00017182,2]
[358857675,1745489433373,-174.8338161,0.00017562,2]
[358857676,1745489433383,-2429.98998108,0.00017999,2]
[358857677,1745489433392,-280.3114072,0.00018356,2]
[358857678,1745489433402,-174.8338161,0.00018356,2]
[358857679,1745489433412,-258.73380978,0.00018604,2]
[358857680,1745489433422,-306.8680667,0.00018658,2]
[358857681,1745489433431,-587.0,0.00018699,2]
[358857682,1745489433441,-258.73380978,0.00018718,2]
[358857683,1745489433451,-2351.0,0.00018888,2]
[358857684,1745489433462,-288.48961714,0.000189,2]
[358857685,1745489433472,-1790.0,0.00019,2]
[358857686,1745489433482,-1650.0,0.00019,2]
[358857687,1745489433492,-169.67,0.00019068,2]
[358857688,1745489433501,-258.73380978,0.00019136,2]
[358857689,1745489433512,-151.0,0.00019166,2]
[358857690,1745489433522,-207.4,0.00019166,2]
[358857691,1745489433532,-172.32384942,0.00019173,2]
[358857692,1745489433542,-623.17556369,0.00019173,2]
[358857693,1745489433551,-500.0,0.00019173,2]
[358857694,1745489433561,-500.0,0.00019173,2]
[358857695,1745489433571,-500.0,0.00019173,2]
[358857696,1745489433580,-500.0,0.00019173,2]
[358857697,1745489433590,-500.0,0.00019173,2]
[358857698,1745489433600,-500.0,0.00019178,2]
[358857699,1745489433609,-500.0,0.00019178,2]
[358857700,1745489433619,-500.0,0.00019178,2]
[358857701,1745489433629,-501.28758674,0.00019178,2]
[358857702,1745489433638,-501.0397167,0.00019178,2]
[358857703,1745489433647,-500.0,0.00019178,2]
[358857704,1745489433657,-500.0,0.00019178,2]
[358857705,1745489433666,-500.0,0.00019178,2]
[358857706,1745489433678,-596.34,0.00019178,2]
[358857707,1745489433689,-500.72213027,0.00019178,2]
[358857708,1745489433701,-500.0,0.00019178,2]
[358857709,1745489433712,-500.0,0.00019178,2]
[358857710,1745489433721,-500.0,0.00019178,2]
[358857711,1745489433731,-503.38816111,0.00019178,2]
[358857712,1745489433741,-500.0,0.00019178,2]
[358857713,1745489433750,-500.0,0.00019178,2]
[358857714,1745489433760,-500.0,0.00019178,2]
[358857715,1745489433771,-500.0,0.00019178,2]
[358857716,1745489433782,-500.0,0.00019178,2]
[358857717,1745489433791,-500.0,0.00019178,2]
[358857718,1745489433800,-501.05130396,0.00019178,2]
[358857719,1745489433810,-511.28065844,0.00019178,2]
[358857720,1745489433819,-500.0,0.00019178,2]
[358857721,1745489433828,-506.19261283,0.00019178,2]
[358857722,1745489433839,-500.0,0.00019178,2]
[358857723,1745489433848,-500.0,0.00019178,2]
[358857724,1745489433858,-500.0,0.00019178,2]
[358857725,1745489433868,-500.0,0.00019178,2]
[358857726,1745489433877,-637.49309326,0.00019178,2]
[358857727,1745489433887,-500.0,0.00019178,2]
[358857728,1745489433898,-504.30444375,0.00019178,2]
[358857729,1745489433907,-1027.64,0.00019178,2]
[358857730,1745489433917,-500.0,0.00019178,2]
[358857731,1745489433926,-501.20362368,0.00019178,2]
[358857732,1745489433936,-503.64910832,0.00019178,2]
[358857733,1745489433945,-505.35838646,0.00019178,2]
[358857734,1745489433955,-500.0,0.00019178,2]
[358857735,1745489433965,-500.0,0.00019178,2]
[358857736,1745489433975,-888.49876399,0.00019178,2]
[358857737,1745489433984,-500.0,0.00019178,2]
[358857738,1745489433994,-500.0,0.00019178,2]
[358857739,1745489434003,-500.0,0.00019178,2]
[358857740,1745489434012,-501.60441298,0.00019178,2]
[358857741,1745489434022,-500.0,0.00019178,2]
[358857742,1745489434031,-500.0,0.00019178,2]
[358857743,1745489434040,-500.0,0.00019178,2]
[358857744,1745489434049,-500.0,0.00019178,2]
[358857745,1745489434059,-500.0,0.00019178,2]
[358857746,1745489434068,-500.0,0.00019178,2]
[358857747,1745489434077,-500.0,0.00019178,2]
[358857748,1745489434086,-500.0,0.00019178,2]
[358857749,1745489434096,-500.0,0.00019178,2]
[358857750,1745489434105,-500.0,0.00019178,2]
[358857751,1745489434114,-500.0,0.00019178,2]
[358857752,1745489434124,-523.76809137,0.00019178,2]
[358857753,1745489434133,-768.56,0.00019178,2]
[358857754,1745489434142,-505.64894293,0.00019178,2]
[358857755,1745489434151,-1069.01,0.00019178,2]
[358857756,1745489434160,-500.0,0.00019178,2]
[358857757,1745489434170,-503.03958147,0.00019178,2]
[358857758,1745489434179,-512.46123513,0.00019178,2]
[358857759,1745489434189,-500.0,0.00019178,2]
[358857760,1745489434199,-500.0,0.00019178,2]
[358857761,1745489434209,-500.94181054,0.00019178,2]
[358857762,1745489434218,-500.0,0.00019178,2]
[358857763,1745489434228,-500.0,0.00019178,2]
[358857764,1745489434237,-500.0,0.00019178,2]
[358857765,1745489434247,-500.0,0.00019178,2]
[358857766,1745489434256,-715.59,0.00019178,2]
[358857767,1745489434266,-500.0,0.00019178,2]
[358857768,1745489434275,-500.0,0.00019178,2]
[358857769,1745489434284,-500.0,0.00019178,2]
[358857770,1745489434294,-500.0,0.00019178,2]
[358857771,1745489434303,-500.0,0.00019178,2]
[358857772,1745489434313,-530.07,0.00019178,2]
[358857773,1745489434323,-500.0,0.00019178,2]
[358857774,1745489434332,-504.36818305,0.00019178,2]
[358857775,1745489434342,-500.0,0.00019178,2]
[358857776,1745489434351,-500.0,0.00019178,2]
[358857777,1745489434361,-501.40328113,0.00019178,2]
[358857778,1745489434371,-733.9,0.00019178,2]
[358857779,1745489434381,-500.0,0.00019178,2]
[358857780,1745489434396,-680.21,0.00019178,2]
[358857781,1745489434409,-500.0,0.00019178,2]
[358857782,1745489434420,-530.12,0.00019178,2]
[358857783,1745489434431,-2568.91,0.00019178,2]
[358857784,1745489434442,-1138.04,0.00019178,2]
[358857785,1745489434452,-500.0,0.00019178,2]
[358857786,1745489434462,-748.71,0.00019178,2]
[358857787,1745489434472,-532.15280362,0.00019178,2]
[358857788,1745489434482,-889.41,0.00019178,2]
[358857789,1745489434492,-500.0,0.00019178,2]
[358857790,1745489434502,-762.04,0.00019178,2]
[358857791,1745489434512,-500.0,0.00019178,2]
[358857792,1745489434523,-500.0,0.00019178,2]
[358857793,1745489434532,-198.77824129,0.00019178,2]
[358857794,1745489434542,-500.0,0.00019178,2]
[358857795,1745489434552,-500.0,0.00019178,2]
[358857796,1745489434561,-552.69736695,0.00019178,2]
[358857797,1745489434571,-522.33021807,0.00019178,2]
[358857798,1745489434580,-1037.35,0.00019178,2]
[358857799,1745489434591,-1310.64,0.00019178,2]
[358857800,1745489434600,-799.9,0.00019178,2]
[358857801,1745489434610,-606.59,0.00019178,2]
[358857802,1745489434620,-500.0,0.00019178,2]
[358857803,1745489434629,-1707.04,0.00019178,2]
[358857804,1745489434639,-692.61,0.00019178,2]
[358857805,1745489434648,-537.17375526,0.00019178,2]
[358857806,1745489434659,-500.0,0.00019178,2]
[358857807,1745489434668,-609.36,0.00019178,2]
[358857808,1745489434677,-500.0,0.00019178,2]
[358857809,1745489434687,-500.0,0.00019178,2]
[358857810,1745489434699,-500.0,0.00019178,2]
[358857811,1745489434710,-500.0,0.00019178,2]
[358857812,1745489434719,-500.0,0.00019178,2]
[358857813,1745489434728,-562.41,0.00019178,2]
[358857814,1745489434739,-500.0,0.00019178,2]
[358857815,1745489434748,-500.0,0.00019178,2]
[358857816,1745489434757,-1256.09,0.00019178,2]
[358857817,1745489434766,-500.0,0.00019178,2]
[358857818,1745489434779,-3272.68,0.00019178,2]
[358857819,1745489434789,-500.0,0.00019178,2]
[358857820,1745489434798,-500.0,0.00019178,2]
[358857821,1745489434807,-1170.88,0.00019178,2]
[358857822,1745489434816,-517.92,0.00019178,2]
[358857823,1745489434825,-500.0,0.00019178,2]
[358857824,1745489434834,-323.03585366,0.00019178,2]
[358857825,1745489434843,-1132.42,0.00019178,2]
[358857826,1745489434852,-500.0,0.00019178,2]
[358857827,1745489434862,-500.0,0.00019178,2]
[358857828,1745489434871,-723.12,0.00019178,2]
[358857829,1745489434881,-1376.99,0.00019178,2]
[358857830,1745489434891,-500.0,0.00019178,2]
[358857831,1745489434901,-269.35144115,0.00019178,2]
[358857832,1745489434910,-502.6369472,0.00019178,2]
[358857833,1745489434919,-775.42,0.00019178,2]
[358857834,1745489434928,-151.0,0.00019178,2]
[358857835,1745489434937,-500.0,0.00019178,2]
[358857836,1745489434947,-500.0,0.00019178,2]
[358857837,1745489434956,-500.0,0.00019178,2]
[358857838,1745489434966,-1124.79,0.00019178,2]
[358857839,1745489434975,-533.8,0.00019178,2]
[358857840,1745489434984,-500.0,0.00019178,2]
[358857841,1745489434994,-559.68,0.00019178,2]
[358857842,1745489435003,-500.0,0.00019178,2]
[358857843,1745489435013,-500.0,0.00019178,2]
[358857844,1745489435023,-1041.22,0.00019178,2]
[358857845,1745489435034,-500.0,0.00019178,2]
[358857846,1745489435044,-2174.1,0.00019178,2]
[358857847,1745489435055,-500.0,0.00019178,2]
[358857848,1745489435064,-513.01,0.00019178,2]
[358857849,1745489435074,-500.0,0.00019178,2]
[358857850,1745489435084,-500.0,0.00019178,2]
[358857851,1745489435093,-500.0,0.00019178,2]
[358857852,1745489435103,-500.0,0.00019178,2]
[358857853,1745489435111,-500.0,0.00019178,2]
[358857854,1745489435120,-655.92,0.00019178,2]
[358857855,1745489435130,-500.0,0.00019178,2]
[358857856,1745489435139,-500.0,0.00019178,2]
[358857857,1745489435148,-514.54,0.00019178,2]
[358857858,1745489435157,-500.0,0.00019178,2]
[358857859,1745489435166,-151.0,0.00019178,2]
[358857860,1745489435175,-500.0,0.00019178,2]
[358857861,1745489435184,-500.0,0.00019178,2]
[358857862,1745489435194,-670.98,0.00019178,2]
[358857863,1745489435203,-500.0,0.00019178,2]
[358857864,1745489435212,-719.07,0.00019178,2]
[358857865,1745489435221,-272.54223893,0.00019178,2]
[358857866,1745489435231,-500.0,0.00019178,2]
[358857867,1745489435240,-1121.26,0.00019178,2]
[358857868,1745489435249,-500.0,0.00019178,2]
[358857869,1745489435258,-500.0,0.00019178,2]
[358857870,1745489435267,-500.0,0.00019178,2]
[358857871,1745489435276,-853.69,0.00019178,2]
[358857872,1745489435286,-500.0,0.00019178,2]
[358857873,1745489435295,-500.0,0.00019178,2]
[358857874,1745489435304,-631.44,0.00019178,2]
[358857875,1745489435313,-486.52141878,0.00019178,2]
[358857876,1745489435322,-500.0,0.00019178,2]
[358857877,1745489435331,-500.0,0.00019178,2]
[358857878,1745489435340,-500.0,0.00019178,2]
[358857879,1745489435350,-500.0,0.00019178,2]
[358857880,1745489435359,-500.0,0.00019178,2]
[358857881,1745489435368,-434.10998265,0.00019178,2]
[358857882,1745489435377,-500.0,0.00019178,2]
[358857883,1745489435386,-500.0,0.00019178,2]
[358857884,1745489435396,-500.0,0.00019178,2]
[358857885,1745489435405,-500.0,0.00019178,2]
[358857886,1745489435414,-500.0,0.00019178,2]
[358857887,1745489435424,-500.0,0.00019178,2]
[358857888,1745489435433,-244.22945904,0.00019178,2]
[358857889,1745489435442,-598.03,0.00019178,2]
[358857890,1745489435452,-503.44668445,0.00019178,2]
[358857891,1745489435462,-500.0,0.00019178,2]
[358857892,1745489435472,-500.0,0.00019178,2]
[358857893,1745489435481,-500.0,0.00019178,2]
[358857894,1745489435491,-500.0,0.00019178,2]
[358857895,1745489435500,-500.0,0.00019178,2]
[358857896,1745489435509,-500.0,0.00019178,2]
[358857897,1745489435519,-505.20689158,0.00019178,2]
[358857898,1745489435528,-500.0,0.00019178,2]
[358857899,1745489435538,-500.0,0.00019178,2]
[358857900,1745489435547,-500.0,0.00019178,2]
[358857901,1745489435558,-500.0,0.00019178,2]
[358857902,1745489435568,-500.0,0.00019178,2]
[358857903,1745489435577,-500.0,0.00019178,2]
[358857904,1745489435587,-151.38717719,0.00019178,2]
[358857905,1745489435597,-500.0,0.00019178,2]
[358857906,1745489435607,-151.0,0.00019178,2]
[358857907,1745489435617,-500.0,0.00019178,2]
[358857908,1745489435626,-502.01298322,0.00019178,2]
[358857909,1745489435635,-500.0,0.00019178,2]
[358857910,1745489435645,-500.0,0.00019178,2]
[358857911,1745489435792,-504.12791805,0.00019178,2]
[358857912,1745489435805,-502.47844044,0.00019178,2]
[358857913,1745489435815,-2024.88,0.00019178,2]
[358857914,1745489435825,-577.49,0.00019178,2]
[358857915,1745489435835,-1098.13,0.00019178,2]
[358857916,1745489435844,-500.0,0.00019178,2]
[358857917,1745489435854,-500.0,0.00019178,2]
[358857918,1745489435864,-533.53,0.00019178,2]
[358857919,1745489435874,-513.81,0.00019178,2]
[358857920,1745489435884,-500.0,0.00019178,2]
[358857921,1745489435896,-1754.72,0.00019178,2]
[358857922,1745489435905,-901.96,0.00019178,2]
[358857923,1745489435915,-500.0,0.00019178,2]
[358857924,1745489435925,-517.26216003,0.00019178,2]
[358857925,1745489435935,-500.0,0.00019178,2]
[358857926,1745489435946,-500.0,0.00019178,2]
[358857927,1745489435956,-1124.14,0.00019178,2]
[358857928,1745489435967,-500.0,0.00019178,2]
[358857929,1745489435976,-1367.86,0.00019178,2]
[358857930,1745489435986,-581.52,0.00019178,2]
[358857931,1745489435998,-587.18,0.00019178,2]
[358857932,1745489436008,-500.0,0.00019178,2]
[358857933,1745489436018,-916.63,0.00019178,2]
[358857934,1745489436027,-500.0,0.00019178,2]
[358857935,1745489436036,-249.80346301,0.00019178,2]
[358857936,1745489436253,-250.19653699,0.00019178,2]
[358857937,1745489436263,-132.26224284,0.00019178,2]
[358857938,1745489436274,-529.39775716,0.00019178,2]
[358857939,1745489436283,-4282.21,0.00019178,2]
[358857940,1745489436292,-3887.48,0.00019178,2]
[358857941,1745489436302,-500.0,0.00019178,2]
[358857942,1745489436311,-579.52,0.00019178,2]
[358857943,1745489436320,-500.0,0.00019178,2]
[358857944,1745489436329,-500.0,0.00019178,2]
[358857945,1745489436339,-546.89,0.00019178,2]
[358857946,1745489436348,-500.0,0.00019178,2]
[358857947,1745489436357,-567.52,0.00019178,2]
[358857948,1745489436370,-500.0,0.00019178,2]
[358857949,1745489436387,-507.08012579,0.00019178,2]
[358857950,1745489436408,-500.0,0.00019178,2]
[358857951,1745489436418,-1185.64,0.00019178,2]
[358857952,1745489436428,-500.0,0.00019178,2]
[358857953,1745489436437,-383.1626213,0.00019178,2]
[358857954,1745489436448,-931.76,0.00019178,2]
[358857955,1745489436457,-500.0,0.00019178,2]
[358857956,1745489436468,-151.0,0.00019178,2]
[358857957,1745489436477,-5074.33,0.00019178,2]
[358857958,1745489436486,-500.0,0.00019178,2]
[358857959,1745489436495,-151.33021459,0.00019178,2]
[358857960,1745489436504,-502.04587694,0.00019178,2]
[358857961,1745489436514,-500.0,0.00019178,2]
[358857962,1745489436523,-501.73816248,0.00019178,2]
[358857963,1745489436532,-151.0,0.00019178,2]
[358857964,1745489436543,-500.0,0.00019178,2]
[358857965,1745489436553,-500.0,0.00019178,2]
[358857966,1745489436563,-1553.83,0.00019178,2]
[358857967,1745489436572,-864.12,0.00019178,2]
[358857968,1745489436582,-500.0,0.00019178,2]
[358857969,1745489436592,-886.11,0.00019178,2]
[358857970,1745489436608,-500.0,0.00019178,2]
[358857971,1745489436618,-500.0,0.00019178,2]
[358857972,1745489436628,-500.0,0.00019178,2]
[358857973,1745489436639,-523.73468278,0.00019178,2]
[358857974,1745489436650,-500.0,0.00019178,2]
[358857975,1745489436659,-500.0,0.00019178,2]
[358857976,1745489436670,-1443.83,0.00019178,2]
[358857977,1745489436679,-509.0,0.00019178,2]
[358857978,1745489436689,-1192.53,0.00019178,2]
[358857979,1745489436700,-501.13022567,0.00019178,2]
[358857980,1745489436711,-615.55,0.00019178,2]
[358857981,1745489436721,-500.0,0.00019178,2]
[358857982,1745489436730,-500.0,0.00019178,2]
[358857983,1745489436740,-402.26189596,0.00019178,2]
[358857984,1745489436750,-3805.81,0.00019178,2]
[358857985,1745489436760,-2046.51,0.00019178,2]
[358857986,1745489436769,-500.0,0.00019178,2]
[358857987,1745489436779,-678.09,0.00019178,2]
[358857988,1745489436790,-500.0,0.00019178,2]
[358857989,1745489436800,-500.0,0.00019178,2]
[358857990,1745489436809,-500.0,0.00019178,2]
[358857991,1745489436819,-562.85,0.00019178,2]
[358857992,1745489436828,-632.41,0.00019178,2]
[358857993,1745489436838,-281.68515943,0.00019178,2]
[358857994,1745489436848,-503.56477861,0.00019178,2]
[358857995,1745489436857,-500.0,0.00019178,2]
[358857996,1745489436867,-500.0,0.00019178,2]
[358857997,1745489436877,-1258.31,0.00019178,2]
[358857998,1745489436889,-500.0,0.00019178,2]
[358857999,1745489436899,-1258.31,0.00019178,2]
[358858000,1745489436909,-1258.31,0.00019178,2]
[358858001,1745489436919,-1258.31,0.00019178,2]
[358858002,1745489436930,-1258.31,0.00019178,2]
[358858003,1745489436940,-622.91853306,0.00019178,2]
[358858004,1745489436950,-1258.31,0.00019178,2]
[358858005,1745489436963,-500.0,0.00019178,2]
[358858006,1745489436973,-1258.31,0.00019178,2]
[358858007,1745489436983,-1258.31,0.00019178,2]
[358858008,1745489436993,-1258.31,0.00019178,2]
[358858009,1745489437024,-1258.31,0.00019178,2]
[358858010,1745489437035,-500.0,0.00019178,2]
[358858011,1745489437045,-1258.31,0.00019178,2]
[358858012,1745489437055,-1258.31,0.00019178,2]
[358858013,1745489437064,-1258.31,0.00019178,2]
[358858014,1745489437073,-1258.31,0.00019178,2]
[358858015,1745489437084,-500.0,0.00019178,2]
[358858016,1745489437095,-1258.31,0.00019178,2]
[358858017,1745489437104,-500.41639559,0.00019178,2]
[358858018,1745489437113,-1258.31,0.00019178,2]
[358858019,1745489437123,-1258.31,0.00019178,2]
[358858020,1745489437133,-1258.31,0.00019178,2]
[358858021,1745489437142,-1258.31,0.00019178,2]
[358858022,1745489437154,-502.71229978,0.00019178,2]
[358858023,1745489437164,-1258.31,0.00019178,2]
[358858024,1745489437173,-1258.31,0.00019178,2]
[358858025,1745489437183,-1258.31,0.00019178,2]
[358858026,1745489437192,-1258.31,0.00019178,2]
[358858027,1745489437202,-1258.38979662,0.00019178,2]
[358858028,1745489437211,-500.0,0.00019178,2]
[358858029,1745489437221,-912.5,0.00019178,2]
[358858030,1745489437230,-500.0,0.00019178,2]
[358858031,1745489437241,-500.0,0.00019178,2]
[358858032,1745489437251,-507.36035517,0.00019178,2]
[358858033,1745489437260,-500.0,0.00019178,2]
[358858034,1745489437271,-1401.19,0.00019178,2]
[358858035,1745489437280,-500.0,0.00019178,2]
[358858036,1745489437290,-500.0,0.00019178,2]
[358858037,1745489437301,-500.0,0.00019178,2]
[358858038,1745489437311,-448.48399133,0.00019178,2]
[358858039,1745489437320,-511.82844527,0.00019178,2]
[358858040,1745489437329,-500.0,0.00019178,2]
[358858041,1745489437339,-500.868303,0.00019178,2]
[358858042,1745489437349,-500.0,0.00019178,2]
[358858043,1745489437358,-874.28,0.00019178,2]
[358858044,1745489437367,-500.0,0.00019178,2]
[358858045,1745489437377,-500.0,0.00019178,2]
[358858046,1745489437386,-500.0,0.00019178,2]
[358858047,1745489437397,-873.15,0.00019178,2]
[358858048,1745489437406,-3143.72,0.00019178,2]
[358858049,1745489437415,-173.58547447,0.00019178,2]
[358858050,1745489437426,-500.0,0.00019178,2]
[358858051,1745489437435,-500.0,0.00019178,2]
[358858052,1745489437444,-500.0,0.00019178,2]
[358858053,1745489437454,-500.0,0.00019178,2]
[358858054,1745489437464,-500.0,0.00019178,2]
[358858055,1745489437473,-432.62457983,0.00019178,2]
[358858056,1745489437482,-500.0,0.00019178,2]
[358858057,1745489437492,-500.0,0.00019178,2]
[358858058,1745489437501,-500.0,0.00019178,2]
[358858059,1745489437510,-500.0,0.00019178,2]
[358858060,1745489437520,-510.81369818,0.00019178,2]
[358858061,1745489437530,-500.0,0.00019178,2]
[358858062,1745489437540,-500.0,0.00019178,2]
[358858063,1745489437551,-500.0,0.00019178,2]
[358858064,1745489437561,-467.00224552,0.00019178,2]
[358858065,1745489437571,-501.94479741,0.00019178,2]
[358858066,1745489437580,-500.0,0.00019178,2]
[358858067,1745489437591,-500.0,0.00019178,2]
[358858068,1745489437601,-500.0,0.00019178,2]